bitfinex-derivatives/quotes_ETHF0:USTF0_20250107
["timestamp","ask_amount","ask_price","bid_price","bid_amount"]
[1736282604241,0.29581,3382.4,3382.1,0.29583]
[1736282604445,3.2078,3382.6,3381.7,1.328]
[1736282604644,0.29582,3382.3,3382.0,0.29584]
[1736282604847,3.2078,3382.6,3382.0,2.83963443]
[1736282605150,3.2078,3383.0,3382.9,0.29576]
[1736282606449,3.2078,3383.0,3382.5,1.329]
[1736282606642,0.29578,3382.8,3382.5,1.329]
[1736282606843,0.29578,3382.8,3382.6,0.29578]
[1736282607043,0.29579,3382.6,3382.5,1.329]
[1736282607243,0.2958,3382.5,3382.3,0.29581]
[1736282607651,0.2958,3382.5,3381.6,3.56543443]
[1736282607652,2.83963443,3382.4,3381.6,0.7258]
[1736282607950,3.50363,3382.1,3381.9,0.29585]
[1736282608146,0.29585,3381.9,3381.7,0.29586]
[1736282608354,3.21664,3382.4,3382.2,0.29582]
[1736282608546,3.5036,3382.5,3382.3,0.29581]
[1736282608547,3.2078,3382.5,3382.3,0.29581]
[1736282608848,3.2078,3382.5,3382.1,1.329]
[1736282609041,3.2078,3382.5,3382.3,0.29581]
[1736282609247,3.2078,3382.5,3382.1,1.329]
[1736282609446,0.29582,3382.2,3382.1,1.329]
[1736282610542,3.2078,3382.5,3382.1,1.329]
[1736282610543,0.2958,3382.5,3382.2,0.29582]
[1736282610849,0.29582,3382.3,3382.2,0.29582]
[1736282611049,0.29582,3382.2,3382.1,1.329]
[1736282611257,0.29587,3381.7,3381.6,0.7258]
[1736282611441,0.29587,3381.7,3381.3,7.37543443]
[1736282611442,3.2078,3382.1,3381.3,7.37543443]
[1736282611748,3.2078,3382.6,3382.4,0.2958]
[1736282612049,3.2078,3383.0,3382.2,7.37543443]
[1736282612353,3.2078,3383.7,3382.7,3.2078]
[1736282612547,0.29574,3383.2,3382.8,1.328]
[1736282612746,0.29574,3383.2,3383.0,0.29575]
[1736282612948,0.29572,3383.4,3383.2,0.29573]
[1736282613256,0.29571,3383.6,3383.5,0.29571]
[1736282613553,3.2078,3383.7,3383.2,0.29573]
[1736282613554,0.29573,3383.3,3383.2,0.29573]
[1736282613740,0.29573,3383.3,3382.8,2.06743]
[1736282613741,3.2078,3383.7,3382.8,2.06743]
[1736282613949,0.29572,3383.4,3383.3,0.29572]
[1736282614147,3.2078,3383.7,3382.8,1.328]
[1736282614343,0.29573,3383.3,3383.2,0.29574]
[1736282614544,3.2078,3383.7,3383.3,0.29572]
[1736282614851,0.29571,3383.6,3383.5,0.29571]
[1736282615050,0.29572,3383.5,3383.3,0.29572]
[1736282615249,0.29571,3383.6,3383.5,0.2957]
[1736282615450,3.2078,3383.7,3383.6,0.2957]
[1736282616553,3.2078,3383.7,3383.6,1.6237]
[1736282618051,3.2078,3383.7,3383.6,1.328]
[1736282618248,3.50349,3383.7,3383.6,1.328]
[1736282618652,3.2078,3383.7,3383.2,3.9128]
[1736282618852,3.2078,3383.7,3383.2,3.2078]
[1736282619350,3.2078,3383.7,3383.0,1.328]
[1736282619748,3.2078,3383.7,3382.8,0.6696]
[1736282619954,3.2078,3383.3,3382.9,1.328]
[1736282620350,0.29578,3382.7,3382.6,4.5358]
[1736282621254,0.29577,3382.8,3382.6,4.83159]
[1736282621552,0.29577,3382.8,3382.4,1.328]
[1736282621856,0.29577,3382.8,3382.5,0.29579]
[1736282622051,0.29577,3382.8,3382.4,1.328]
[1736282622259,0.29577,3382.8,3382.6,0.29578]
[1736282622757,0.29578,3382.8,3382.6,0.29579]
[1736282623348,3.2078,3383.3,3383.2,0.29574]
[1736282623543,3.2078,3383.3,3382.6,6.78691443]
[1736282623544,6.21672875,3383.8,3382.6,6.04743443]
[1736282623854,6.21672875,3383.8,3382.5,1.328]
[1736282623855,5.49652875,3383.8,3383.1,0.73937]
[1736282624157,5.79221875,3383.8,3383.2,0.7131]
[1736282624355,5.79221875,3383.8,3383.6,0.29569]
[1736282624552,3.2078,3383.8,3383.7,0.29569]
[1736282626054,3.2078,3383.8,3383.3,1.328]
[1736282626256,3.50352,3383.4,3383.3,1.328]
[1736282626558,3.2078,3383.4,3382.7,3.2078]
[1736282626756,0.29575,3383.1,3382.9,0.29576]
[1736282626953,3.2078,3383.4,3382.6,1.327]
[1736282627152,0.29574,3383.2,3383.0,0.29575]
[1736282627354,0.29575,3383.0,3382.9,0.29576]
[1736282627750,3.2078,3383.4,3382.6,1.327]
[1736282627956,3.2078,3383.4,3383.0,0.29575]
[1736282627957,0.29575,3383.1,3383.0,0.29575]
[1736282628157,3.2078,3383.4,3382.6,1.327]
[1736282628357,0.29573,3383.3,3383.1,0.29574]
[1736282628564,3.2078,3383.4,3382.6,1.327]
[1736282628855,0.29576,3383.0,3382.9,0.29576]
[1736282629060,0.29574,3383.2,3383.0,0.29575]
[1736282629257,0.29574,3383.1,3383.0,0.29575]
[1736282629454,3.50352,3383.4,3383.1,0.29574]
[1736282629662,0.29575,3383.1,3383.0,0.29575]
[1736282629851,0.29575,3383.0,3382.9,0.29576]
[1736282630053,3.2078,3383.4,3382.6,1.327]
[1736282630256,0.29576,3382.9,3382.8,0.29577]
[1736282630459,0.29578,3382.8,3382.7,0.29578]
[1736282630859,0.29578,3382.7,3382.6,0.29578]
[1736282631060,2.83963443,3383.1,3382.3,3.2078]
[1736282631362,2.83963443,3383.1,3382.2,1.328]
[1736282631363,3.2078,3382.7,3382.2,1.328]
[1736282631563,0.29581,3382.3,3382.2,1.328]
[1736282631754,0.29581,3382.3,3381.4,3.2078]
[1736282631755,2.83963443,3382.3,3381.4,3.2078]
[1736282631955,6.04743443,3382.3,3381.4,3.2078]
[1736282632164,0.29586,3381.8,3381.7,0.29586]
[1736282632362,0.29585,3381.9,3381.8,0.29585]
[1736282632660,6.04743443,3382.3,3381.7,0.29586]
[1736282632863,0.73959,3382.1,3381.5,0.29588]
[1736282633063,3.2078,3381.8,3381.3,1.328]
[1736282633362,0.29589,3381.4,3381.3,1.6239]
[1736282633662,3.2078,3381.4,3380.8,7.57123226]
[1736282633866,0.29592,3381.2,3381.0,0.29593]
[1736282634062,3.2078,3381.4,3380.7,1.328]
[1736282634563,0.29595,3380.8,3380.6,0.29596]
[1736282634863,0.29594,3380.9,3380.4,1.328]
[1736282635158,3.2078,3381.0,3380.6,2.83963443]
[1736282635360,6.42444,3381.5,3380.7,3.2078]
[1736282635663,0.2959,3381.4,3380.8,0.29595]
[1736282635853,3.2078,3381.5,3380.7,3.94769]
[1736282635854,2.28872875,3381.1,3380.7,3.94769]
[1736282636058,2.28872875,3381.1,3381.0,0.29593]
[1736282636453,2.28872875,3381.1,3380.8,0.29595]
[1736282636454,2.58464875,3381.1,3380.8,0.29595]
[1736282636663,2.28872875,3381.1,3380.9,0.29593]
[1736282636863,0.2959,3381.4,3381.1,0.29591]
[1736282637565,3.2078,3381.5,3380.7,3.94768]
[1736282637762,0.2959,3381.4,3380.8,0.6711]
[1736282637963,0.2959,3381.4,3381.2,0.29591]
[1736282639156,0.29589,3381.4,3381.1,0.29592]
[1736282639362,3.50369,3381.5,3381.3,0.2959]
[1736282639665,3.2078,3381.5,3380.8,0.6711]
[1736282639853,0.2959,3381.4,3381.2,0.29591]
[1736282640058,0.2959,3381.4,3381.2,0.2959]
[1736282640259,3.2078,3381.5,3380.8,0.6711]
[1736282640457,3.2078,3381.5,3381.2,0.2959]
[1736282640766,3.21664,3381.4,3380.3,3.2078]
[1736282640961,3.21664,3381.4,3380.1,0.7126]
[1736282640962,3.2078,3380.6,3379.8,4.16763443]
[1736282641163,3.2078,3380.2,3379.6,7.11546047]
[1736282641467,0.29604,3379.7,3379.6,6.87353226]
[1736282642071,1.00464,3379.7,3379.6,6.87353226]
[1736282642564,0.2961,3379.1,3378.8,0.29612]
[1736282642770,3.2078,3379.0,3378.5,5.9154]
[1736282642961,3.2078,3379.0,3378.9,0.29611]
[1736282643466,3.2078,3379.0,3378.4,2.83963443]
[1736282643661,3.2078,3379.0,3378.0,6.04743443]
[1736282643864,3.2078,3379.0,3378.7,0.29613]
[1736282644167,3.2078,3379.0,3378.1,1.328]
[1736282644463,3.2078,3378.5,3378.0,2.83963443]
[1736282644671,3.2078,3378.5,3378.4,0.29616]
[1736282645073,0.29617,3378.3,3377.7,3.912]
[1736282645371,3.2078,3378.0,3376.7,3.2078]
[1736282645665,0.29624,3377.4,3376.7,0.2963]
[1736282645970,0.29624,3377.4,3376.3,3.2078]
[1736282645971,3.2078,3377.0,3376.3,3.2078]
[1736282646165,3.2078,3376.6,3375.9,0.29637]
[1736282646373,3.2078,3376.6,3375.6,9.16470968]
[1736282646374,3.2078,3376.2,3375.6,9.16470968]
[1736282646870,0.29636,3376.1,3375.6,9.16470968]
[1736282647066,3.2078,3375.8,3375.6,9.16470968]
[1736282647471,0.29639,3375.7,3375.6,9.16470968]
[1736282647764,0.29639,3375.7,3374.8,13.74706452]
[1736282647765,0.29646,3374.9,3374.8,13.74706452]
[1736282648068,0.29646,3374.9,3374.1,0.29653]
[1736282648069,3.2078,3374.9,3374.1,0.29653]
[1736282648367,2.83963443,3374.4,3373.6,2.70210969]
[1736282648675,2.83963443,3374.4,3373.3,11.4558871]
[1736282648676,0.29659,3373.4,3373.3,11.4558871]
[1736282648871,0.29664,3372.9,3372.3,18.32941937]
[1736282649072,0.29667,3372.6,3372.5,15.43356195]
[1736282649362,0.29667,3372.6,3370.2,13.31217155]
[1736282649363,3.20262008,3370.7,3370.2,13.31217155]
[1736282649560,6.76618635,3370.5,3370.4,0.68373522]
[1736282649763,0.29687,3370.3,3370.2,13.31067155]
[1736282649966,6.46933635,3370.5,3370.2,13.31067155]
[1736282650168,6.46933635,3370.5,3369.1,27.6644551]
[1736282650169,11.46933635,3370.5,3369.1,27.6644551]
[1736282650370,9.62892,3371.5,3369.1,11.7221951]
[1736282650371,3.50476,3369.2,3369.1,11.7221951]
[1736282650568,3.2078,3369.5,3369.1,11.7221951]
[1736282650767,0.29696,3369.2,3369.1,7.45156688]
[1736282650967,3.2078,3369.5,3368.7,3.2078]
[1736282651269,0.297,3368.8,3367.6,7.50187476]
[1736282651464,0.297,3368.8,3366.3,26.12928841]
[1736282651465,6.46933635,3368.0,3366.6,23.78877686]
[1736282651660,6.46933635,3368.0,3367.5,10.75462969]
[1736282651661,3.2078,3368.0,3367.5,10.75462969]
[1736282651862,9.3580762,3369.2,3367.9,13.96242969]
[1736282652065,9.3580762,3369.2,3367.3,3.26153635]
[1736282652066,9.3580762,3369.2,3368.5,11.05164969]
[1736282652271,16.5764803,3369.4,3368.2,3.2078]
[1736282652272,13.3686803,3369.4,3368.2,3.2078]
[1736282652468,13.3686803,3369.4,3367.3,3.2078]
[1736282652469,0.29712,3367.4,3367.3,3.2078]
[1736282652669,3.2078,3367.5,3366.6,1.725]
[1736282652872,3.2078,3367.9,3367.7,2.39050722]
[1736282653079,0.29693,3369.7,3368.8,6.29851306]
[1736282653372,0.29693,3369.7,3369.1,3.2078]
[1736282653566,5.56527596,3369.5,3369.1,3.2078]
[1736282653766,5.56527596,3369.5,3368.8,3.2078]
[1736282653966,20.23565647,3370.5,3369.4,6.29851306]
[1736282654162,6.86618627,3370.5,3369.2,3.2078]
[1736282654366,3.2078,3369.8,3368.6,3.2078]
[1736282654566,3.2078,3370.3,3369.6,9.50631306]
[1736282654765,3.2078,3370.3,3369.5,6.29851306]
[1736282654766,2.21960099,3370.2,3369.5,6.29851306]
[1736282654974,2.21960099,3370.2,3368.7,4.9968]
[1736282655173,3.2078,3371.3,3369.9,0.40276684]
[1736282655379,3.2078,3371.3,3369.9,3.2078]
[1736282655673,3.26153635,3371.5,3369.8,0.2969]
[1736282655674,3.2078,3370.5,3369.8,0.2969]
[1736282655877,3.2078,3370.9,3370.0,3.2078]
[1736282656277,0.29683,3370.8,3370.0,5.59830722]
[1736282656470,3.50462,3370.9,3370.0,5.59830722]
[1736282656672,3.2078,3371.3,3370.5,3.2078]
[1736282656867,3.2078,3372.2,3370.9,3.2078]
[1736282657074,3.2078,3372.2,3370.6,1.857]
[1736282657075,3.2078,3372.2,3371.4,3.2078]
[1736282657270,3.26153635,3373.0,3371.4,3.2078]
[1736282657271,3.2078,3372.6,3371.4,3.2078]
[1736282657471,3.2078,3372.6,3371.8,3.50453]
[1736282657667,3.2078,3373.3,3372.5,3.2078]
[1736282657870,3.2078,3373.1,3371.6,1.857]
[1736282658082,0.2967,3372.2,3371.6,1.857]
[1736282658283,0.2967,3372.2,3371.6,4.24750722]
[1736282658580,3.2078,3372.7,3371.8,3.2078]
[1736282658776,3.2078,3372.3,3371.6,1.857]
[1736282659878,3.2078,3372.3,3371.7,0.29674]
[1736282660076,1.42116,3374.5,3372.1,3.2078]
[1736282660077,3.2078,3372.8,3372.1,3.2078]
[1736282660283,3.50445,3372.8,3371.9,3.2078]
[1736282660476,3.2078,3372.8,3371.9,3.2078]
[1736282660676,3.2078,3372.8,3371.9,5.59830722]
[1736282660876,3.2078,3372.8,3372.0,0.29671]
[1736282661188,0.2966,3373.4,3372.5,3.2078]
[1736282661489,3.2078,3373.3,3372.5,3.50447]
[1736282661790,3.50439,3373.4,3372.6,3.2078]
[1736282662085,3.2078,3373.4,3372.6,3.2078]
[1736282662285,0.29668,3372.5,3371.8,3.2078]
[1736282662481,3.2078,3372.9,3371.9,3.2078]
[1736282662879,3.2078,3372.9,3371.8,4.24750722]
[1736282662880,3.2078,3372.9,3371.8,3.2078]
[1736282663084,3.2078,3372.1,3371.8,2.39050722]
[1736282663387,0.29669,3372.4,3371.9,1.857]
[1736282663588,3.50447,3372.6,3371.9,1.857]
[1736282663792,3.2078,3373.0,3372.2,3.2078]
[1736282663984,3.2078,3373.0,3372.3,3.2078]
[1736282664289,3.2078,3373.0,3372.3,3.50448]
[1736282664481,3.2078,3373.0,3372.3,2.39050722]
[1736282664679,3.2078,3372.4,3371.5,3.2078]
[1736282664879,0.29673,3371.9,3371.1,5.36159]
[1736282665088,3.2078,3372.4,3371.1,1.857]
[1736282665283,0.29669,3372.3,3371.4,3.2078]
[1736282665483,3.2078,3372.4,3371.4,3.2078]
[1736282665687,0.2967,3372.3,3371.6,3.2078]
[1736282665891,3.2078,3372.8,3372.1,0.2967]
[1736282666089,3.2078,3373.3,3372.3,0.29668]
[1736282666289,3.2078,3372.5,3372.2,1.857]
[1736282666491,3.26153635,3373.5,3372.2,1.857]
[1736282666492,0.29667,3372.6,3372.2,1.857]
[1736282666683,3.2078,3373.1,3372.2,4.24750722]
[1736282666883,0.29665,3372.9,3372.2,4.24750722]
[1736282667085,3.2078,3372.8,3372.2,2.39050722]
[1736282667584,3.2078,3372.8,3372.0,1.857]
[1736282667585,3.2078,3372.4,3372.0,1.857]
[1736282667889,6.46933635,3372.4,3371.1,5.0648]
[1736282668080,6.46933635,3372.4,3371.5,3.2078]
[1736282668386,1.48271,3374.1,3371.9,3.2078]
[1736282668387,3.2078,3372.8,3371.9,3.2078]
[1736282668595,0.29662,3373.2,3372.5,0.29667]
[1736282668790,0.29662,3373.2,3372.6,2.15366]
[1736282668997,3.50438,3373.7,3373.0,0.29662]
[1736282669290,3.2078,3373.3,3372.6,1.857]
[1736282669487,0.29666,3372.7,3372.0,12.1108]
[1736282669687,0.29667,3372.6,3372.1,1.857]
[1736282669889,3.2078,3372.9,3372.1,1.857]
[1736282670088,0.2967,3372.3,3372.1,4.24750722]
[1736282670284,0.74163,3372.8,3371.6,3.2078]
[1736282670589,0.2968,3371.1,3370.8,3.2078]
[1736282670791,3.2078,3371.6,3370.9,1.857]
[1736282671294,3.2078,3371.1,3370.4,3.2078]
[1736282671490,3.2078,3371.1,3370.5,1.857]
[1736282671793,0.29682,3370.9,3370.5,1.857]
[1736282671995,3.2078,3371.1,3370.5,4.24750722]
[1736282672185,3.2078,3371.9,3370.8,3.2078]
[1736282672386,0.29675,3371.7,3371.6,3.2078]
[1736282672588,0.29675,3371.7,3371.2,0.29678]
[1736282672589,3.2078,3372.4,3371.5,1.857]
[1736282672892,0.29675,3371.6,3371.5,1.857]
[1736282673295,3.2078,3371.7,3371.5,1.857]
[1736282673498,0.29675,3371.6,3371.5,1.857]
[1736282673798,0.29675,3371.6,3370.5,3.2078]
[1736282673799,3.2078,3371.7,3370.7,1.857]
[1736282673994,0.2968,3371.2,3370.7,2.15383]
[1736282674292,0.29678,3371.3,3370.9,3.50461]
[1736282674497,0.29677,3371.5,3371.0,0.2968]
[1736282674892,0.29677,3371.5,3371.1,0.2968]
[1736282675101,6.46933635,3371.2,3368.4,3.2078]
[1736282675301,0.29684,3370.7,3370.2,0.29687]
[1736282675501,0.29681,3371.0,3370.1,3.50468]
[1736282675696,3.2078,3371.1,3370.2,0.29688]
[1736282675893,3.2078,3370.3,3369.9,1.919]
[1736282676096,0.29689,3370.0,3369.9,1.919]
[1736282676402,3.2078,3370.3,3369.9,1.919]
[1736282676602,0.29689,3370.0,3369.9,1.919]
[1736282677199,0.29692,3369.8,3369.6,1.919]
[1736282677498,3.2078,3370.3,3369.5,0.7247]
[1736282677698,0.29691,3369.9,3369.7,1.919]
[1736282677901,0.29691,3369.8,3369.7,1.919]
[1736282678500,3.2078,3369.8,3368.8,3.2078]
[1736282678795,3.26153635,3370.7,3369.2,0.29696]
[1736282678796,0.29693,3369.7,3369.2,0.29696]
[1736282678995,3.2078,3370.2,3369.3,3.2078]
[1736282679197,3.2078,3369.7,3369.0,6.01077903]
[1736282679392,3.50473,3369.7,3369.2,0.29696]
[1736282679599,0.29693,3369.6,3369.2,0.29696]
[1736282679797,0.29701,3368.7,3368.2,0.29705]
[1736282679998,0.29702,3368.6,3368.4,1.92]
[1736282680192,3.2078,3368.8,3368.5,0.7028]
[1736282680389,3.2078,3369.2,3368.5,5.7028]
[1736282680597,3.2078,3369.7,3368.9,3.2078]
[1736282680799,3.2078,3369.7,3369.6,0.29693]
[1736282681001,3.2078,3369.7,3369.1,3.2078]
[1736282681206,3.2078,3369.7,3368.7,3.2078]
[1736282681506,3.2078,3369.7,3369.6,0.29693]
[1736282681696,3.2078,3369.7,3369.6,1.92]
[1736282682499,3.2078,3369.7,3369.6,2.21693]
[1736282682696,3.50472,3369.7,3369.6,1.92]
[1736282683191,0.297,3368.8,3368.6,1.92]
[1736282683394,0.7423,3369.8,3367.7,1.41324]
[1736282683395,0.29704,3368.3,3368.0,0.99897]
[1736282683592,3.2078,3368.3,3368.0,2.91896]
[1736282683801,3.2078,3368.3,3368.0,0.7019]
[1736282684002,3.2078,3368.3,3368.1,2.21706]
[1736282684204,3.2078,3368.3,3368.2,0.29705]
[1736282684400,3.2078,3368.3,3368.1,2.21706]
[1736282684593,3.2078,3368.3,3368.1,1.92]
[1736282684799,3.2078,3368.3,3367.7,2.5905]
[1736282684998,3.50489,3367.8,3367.7,1.92]
[1736282685401,3.50489,3367.8,3367.3,0.29713]
[1736282685402,3.2078,3367.8,3367.3,0.29713]
[1736282685607,3.2078,3367.8,3367.5,0.29711]
[1736282686000,3.2078,3367.8,3367.4,1.92]
[1736282686001,0.29711,3367.6,3367.4,1.92]
[1736282686201,3.2078,3367.8,3367.7,0.2971]
[1736282686502,3.2078,3368.4,3368.3,0.29704]
[1736282686696,3.2078,3368.4,3367.6,3.95055]
[1736282686697,3.2078,3368.9,3368.0,3.2078]
[1736282686902,3.2078,3368.5,3368.3,0.29704]
[1736282687099,3.2078,3368.9,3368.4,1.92]
[1736282687403,2.21960099,3369.3,3369.2,0.29696]
[1736282687404,3.2078,3369.3,3369.2,0.29696]
[1736282687612,3.2078,3369.3,3368.4,5.1278]
[1736282687613,2.21960099,3369.7,3369.6,0.29693]
[1736282687906,3.32940148,3370.0,3369.9,0.2969]
[1736282688103,3.32940148,3370.0,3369.6,1.92]
[1736282688404,3.32940148,3370.0,3369.9,0.2969]
[1736282688910,3.32940148,3370.0,3369.6,5.1278]
[1736282688911,3.2078,3370.4,3369.7,3.2078]
[1736282689111,3.2078,3370.4,3370.3,0.29687]
[1736282691398,6.53720148,3371.0,3370.3,5.29687]
[1736282691709,6.53720148,3371.0,3370.8,0.29682]
[1736282692003,6.83401148,3371.0,3370.9,1.92]
[1736282692210,3.2078,3371.0,3370.9,1.92]
[1736282692398,3.2078,3371.0,3370.9,2.21681]
[1736282693108,3.2078,3371.0,3370.9,1.92]
[1736282693411,0.29686,3370.5,3370.2,2.21687]
[1736282693604,0.29687,3370.4,3370.2,1.92]
[1736282693806,3.2078,3370.5,3370.3,0.29686]
[1736282694006,0.29686,3370.4,3370.2,0.29687]
[1736282694302,3.2078,3370.5,3370.2,1.92]
[1736282694501,0.29687,3370.3,3370.2,1.92]
[1736282694703,3.2078,3370.5,3370.2,1.92]
[1736282694899,4.57219251,3370.3,3370.2,2.21687]
[1736282695503,4.57219251,3370.3,3370.2,2.21688]
[1736282695904,4.57219251,3370.3,3370.1,4.45572162]
[1736282696113,0.29688,3370.2,3370.1,4.45572162]
[1736282696407,4.57219251,3370.3,3370.1,4.45572162]
[1736282696408,4.57219251,3370.3,3370.1,4.75260162]
[1736282696705,4.57219251,3370.3,3370.2,0.29688]
[1736282697309,5.5386664,3370.3,3370.2,5.29688]
[1736282698023,5.5386664,3370.3,3370.2,0.29688]
[1736282698211,5.5386664,3370.3,3370.2,5.29688]
[1736282698212,3.43539578,3370.3,3370.2,5.29688]
[1736282698911,0.44536725,3370.8,3370.2,5.0]
[1736282699107,0.44536725,3370.8,3370.7,0.29683]
[1736282699314,3.3900664,3370.9,3370.8,0.29682]
[1736282699508,10.37072627,3371.8,3370.8,0.74206]
[1736282699705,10.37072627,3371.8,3371.0,3.2078]
[1736282699909,10.37072627,3371.8,3371.7,0.29674]
[1736282699910,10.07398627,3371.8,3371.7,0.29674]
[1736282700308,6.86618627,3371.8,3371.7,0.29674]
[1736282700512,0.29675,3371.7,3371.3,0.29677]
[1736282700725,0.29676,3371.5,3371.4,1.92]
[1736282700914,3.2078,3371.5,3371.0,1.92]
[1736282701220,3.88154,3372.3,3372.0,0.29672]
[1736282701221,3.2078,3372.2,3372.0,0.29672]
[1736282701409,3.2078,3372.6,3372.1,1.92]
[1736282701713,0.29672,3372.0,3371.9,8.907]
[1736282701911,3.2078,3372.2,3372.1,0.29671]
[1736282702913,3.26153635,3373.4,3372.1,0.29671]
[1736282702914,3.2078,3372.6,3372.5,0.29667]
[1736282703113,3.2078,3373.1,3372.0,3.2078]
[1736282703315,4.16929,3373.5,3373.3,0.2966]
[1736282703611,6.86618627,3373.9,3373.3,1.92]
[1736282703814,6.86618627,3373.9,3373.8,0.29656]
[1736282704015,3.2078,3374.0,3373.8,5.0]
[1736282704216,3.2078,3374.0,3372.5,0.6939]
[1736282704217,3.50435,3374.0,3373.6,0.29658]
[1736282704523,3.50434,3374.0,3373.7,1.92]
[1736282704709,3.2078,3374.0,3373.7,1.92]
[1736282705015,6.86618627,3374.3,3374.0,0.29654]
[1736282705212,6.86618627,3374.3,3373.8,3.2078]
[1736282705416,6.86618627,3374.3,3374.2,3.50432]
[1736282705615,6.86618627,3374.3,3374.2,1.938]
[1736282705812,3.2078,3374.6,3374.2,1.938]
[1736282706112,3.50426,3375.0,3374.5,0.2965]
[1736282706315,3.2078,3375.0,3374.9,0.29646]
[1736282706713,10.07398627,3375.5,3375.4,0.29642]
[1736282706915,10.07398627,3375.5,3375.4,2.23342]
[1736282707114,10.07398627,3375.5,3375.4,7.23342]
[1736282707414,4.26068627,3375.5,3375.4,7.23342]
[1736282707615,3.2078,3376.7,3376.6,0.29631]
[1736282707810,3.2078,3376.7,3376.6,2.23331]
[1736282708012,5.77304961,3377.6,3377.4,0.29624]
[1736282708312,5.77304961,3377.6,3377.0,3.2078]
[1736282708516,2.56524961,3377.6,3377.5,0.29623]
[1736282708815,3.2078,3378.1,3377.4,3.2078]
[1736282708816,3.2078,3378.1,3377.8,0.2962]
[1736282709116,3.2078,3378.1,3377.9,1.937]
[1736282709513,3.2078,3378.6,3378.2,0.29617]
[1736282709721,3.2078,3378.6,3378.0,8.898]
[1736282709920,3.2078,3378.6,3378.1,0.29617]
[1736282710113,3.2078,3378.6,3378.3,0.29616]
[1736282710309,3.2078,3378.6,3378.1,0.29618]
[1736282710614,3.2078,3378.6,3378.4,0.29616]
[1736282710816,3.2078,3378.6,3377.8,1.936]
[1736282711013,3.2078,3378.6,3376.4,1.77846]
[1736282711014,3.2078,3378.2,3376.0,0.23979513]
[1736282711317,3.26153635,3378.3,3375.4,3.2078]
[1736282711318,3.2078,3376.3,3376.1,1.936]
[1736282711510,3.2078,3376.3,3376.2,0.29635]
[1736282711713,3.2078,3376.7,3376.6,0.29631]
[1736282711912,3.2078,3376.7,3376.1,1.936]
[1736282712115,1.3479,3377.9,3375.3,12.15953635]
[1736282712116,3.2078,3376.2,3375.3,12.15953635]
[1736282712417,3.2078,3376.2,3375.4,1.936]
[1736282712607,3.2078,3376.2,3375.5,1.936]
[1736282712808,3.2078,3375.8,3375.7,0.29639]
[1736282713014,2.36827,3375.8,3375.7,0.29639]
[1736282713220,3.2078,3376.7,3376.3,0.29634]
[1736282713411,3.2078,3376.7,3376.5,0.29632]
[1736282713611,3.2078,3376.7,3376.6,1.936]
[1736282715016,3.2078,3376.7,3376.5,0.29632]
[1736282715210,3.2078,3376.7,3375.3,8.898]
[1736282715414,3.2078,3375.7,3375.3,10.833]
[1736282715613,3.2078,3375.2,3373.9,8.894]
[1736282715817,3.2078,3374.0,3373.1,8.894]
[1736282716016,3.2078,3374.0,3373.3,3.2078]
[1736282716216,3.2078,3374.0,3373.9,0.29655]
[1736282716515,3.2078,3375.3,3373.9,0.74138]
[1736282716711,3.2078,3374.9,3373.8,6.46933635]
[1736282716919,3.2078,3375.3,3375.2,0.29644]
[1736282717219,3.2078,3375.3,3375.2,2.23144]
[1736282717414,3.2078,3375.3,3375.2,0.29644]
[1736282717621,3.2078,3375.3,3375.2,1.935]
[1736282717822,3.50423,3375.3,3375.2,1.935]
[1736282718015,3.2078,3375.3,3375.2,1.935]
[1736282718324,3.2078,3375.3,3375.2,2.23144]
[1736282718921,2.10182,3377.0,3375.8,0.29638]
[1736282718922,3.2078,3375.9,3375.8,0.29638]
[1736282719517,3.2078,3375.9,3375.2,1.935]
[1736282719717,3.2078,3375.3,3374.9,8.894]
[1736282720124,0.29645,3375.1,3374.9,8.894]
[1736282720326,3.2078,3375.3,3374.9,8.894]
[1736282720327,0.29645,3375.0,3374.9,8.894]
[1736282720823,0.29645,3375.1,3374.9,8.894]
[1736282721019,3.2078,3375.3,3375.2,0.29644]
[1736282721420,3.2078,3375.7,3375.6,0.2964]
[1736282721621,3.2078,3375.7,3375.6,1.935]
[1736282721823,3.2078,3375.7,3375.6,2.2314]
[1736282722126,3.2078,3375.7,3375.6,1.935]
[1736282722313,3.2078,3375.7,3375.6,2.2314]
[1736282722918,3.2078,3375.7,3375.6,1.935]
[1736282723327,3.2078,3375.7,3375.6,2.2314]
[1736282723929,3.2078,3375.7,3375.6,1.935]
[1736282724324,3.2078,3375.7,3375.6,2.2314]
[1736282724528,3.2078,3375.7,3375.6,1.935]
[1736282725027,3.50419,3375.7,3375.6,1.935]
[1736282725424,3.2078,3375.7,3375.6,1.935]
[1736282725730,3.2078,3375.7,3375.6,2.2314]
[1736282727731,3.2078,3375.7,3374.9,8.10534817]
[1736282727928,3.2078,3375.7,3373.1,2.968]
[1736282727929,3.50426,3375.0,3374.6,2.23148]
[1736282728232,3.2078,3375.0,3374.3,1.935]
[1736282728530,3.50431,3374.4,3374.3,1.935]
[1736282728729,3.2078,3374.4,3373.7,8.894]
[1736282729027,3.26153635,3374.6,3373.7,8.894]
[1736282729028,3.2078,3373.8,3373.7,10.829]
[1736282729532,3.2078,3373.8,3373.7,11.12557]
[1736282730230,3.2078,3373.8,3373.7,0.29657]
[1736282730427,3.2078,3373.8,3373.7,2.23157]
[1736282730929,3.2078,3373.8,3373.7,1.935]
[1736282731126,3.2078,3373.8,3372.9,8.895]